Cogmind - Beta 15 @@@ ROGUE MODE // 2025.07.13 @ 22:15:30 Player: beans Result: Destroyed self with Subdweller Shrapnel Launcher Performance ------------- Evolutions (0) 0 Regions Visited (2) 400 Robots Destroyed (21) 105 Value Destroyed (494) 494 Prototype IDs (0) 0 Alien Tech Used (0) 0 Bonus (0) 0 TOTAL SCORE: 999 Bonus ------- None Cogmind --------- Core Integrity 0/250 Matter 151/300 Energy 250/250 System Corruption 0% Temperature Cool (0) Movement Core (250) Ox4 Location -10/Subcaves Parts ------- > --- POWER (1) -------- Ion Engine > --- PROPULSION (2) --- (None) > --- UTILITY (2) ------ (None) > --- WEAPON (2) ------- Subdweller Shrapnel Launcher > --- INVENTORY (5) ---- EM Pulse Gun Medium Laser Spread Laser Battle Cannon Mini Grenade Launcher Peak State ------------ > --- POWER ------------ Ion Engine > --- PROPULSION ------- Light Treads Light Treads > --- UTILITY ---------- (None) > --- WEAPON ----------- Grenade Launcher Mini Grenade Launcher > --- INVENTORY -------- EM Pulse Gun Medium Laser [Rating: 6] Favorites ----------- Power Ion Engine Engine Ion Engine Propulsion Light Treads Treads Light Treads Utility None Weapon Spread Laser Energy Gun Spread Laser Ballistic Cannon Battle Cannon Launcher Grenade Launcher Build | -11 -10 -10 ------- Run | Yrd Mat Sub Slots Evolved . | . . . Power . | . . . Propulsion . | . . . Utility . | . . . Weapon . | . . . Parts Attached 10 | 5 2 3 Power 1 | 1 . . Engine 1 | 1 . . Core . | . . . Reactor . | . . . Propulsion 2 | 2 . . Treads 2 | 2 . . Leg . | . . . Wheel . | . . . Hover . | . . . Flight . | . . . Utility . | . . . Device . | . . . Storage . | . . . Processor . | . . . Hackware . | . . . Protection . | . . . Artifact . | . . . Weapon 7 | 2 2 3 Energy Gun 3 | 2 . 1 Energy Cannon . | . . . Ballistic Gun . | . . . Ballistic Cannon 1 | . . 1 Launcher 3 | . 2 1 Special Weapon . | . . . Impact Weapon . | . . . Slashing Weapon . | . . . Piercing Weapon . | . . . Special Melee Weapon . | . . . Unidentified Prototypes . | . . . Parts Lost 4 | . . 4 Power . | . . . Propulsion 2 | . . 2 Utility . | . . . Weapon 2 | . . 2 Highest Loss Streak 1 | . . 1 To Critical Strikes . | . . . Average Backups 4 | . 3 4 Power . | . . . Propulsion . | . . . Utility . | . . . Weapon 4 | . 3 4 Tool/Special . | . . . Unused Backups 1 | . . 1 Power . | . . . Propulsion . | . . . Utility . | . . . Weapon 1 | . . 1 Tool/Special . | . . . Average Slot Usage (%) 56 | . 71 51 Engine 14 | . 14 14 Treads 14 | . 28 10 Energy Gun 8 | . 2 10 Ballistic Cannon 1 | . . 1 Launcher 17 | . 25 14 Peak Build Rating 6 | 5 6 6 Average Rating 5 | 3 5 5 On Entrance 3 | . 5 6 Naked Turns . | . . . Heaviest Build 16 | 9 10 16 Greatest Support 40 | 40 40 40 Greatest Overweight (x) 5 | 1 . 5 Average Overweight (x) 1 | . . 1 Largest Inventory Capacity 5 | 5 5 5 Average Capacity 5 | 5 5 5 Most Carried 5 | 2 4 5 Average Carried 4 | . 3 4 Final Capacity 5 | 5 5 5 Final Carried 5 | . 4 5 Class Distribution -------------------- 100% | Mutant Dominant Class ---------------- Mutant | -10/Materials Mutant | -10/Subcaves Resources | -11 -10 -10 ----------- Run | Yrd Mat Sub Matter Collected 581 | 207 9 365 Remotely . | . . . Salvage Created 296 | 70 47 179 Parts 23 | 1 16 6 Haulers Intercepted . | . . . Recyclers Shooed . | . . . Parts Field Recycled . | . . . Retrieved Matter . | . . . Parts Self-Destructed 1 | . . 1 Prevented . | . . . Kills | -11 -10 -10 ------- Run | Yrd Mat Sub Combat Hostiles Destroyed 17 | . 6 11 Guns 3 | . . 3 Cannons 1 | . . 1 AOE 13 | . 6 7 Classes Destroyed 5 | 1 3 1 Recycler 1 | 1 . . Operator 1 | . 1 . Watcher 2 | . 2 . Swarmer 9 | . 6 3 Subdweller 8 | . . 8 Best Kill Streak 9 | 1 9 3 Combat Bots Only 6 | . 6 3 Max Kills in Single Turn 3 | 1 3 1 Gunslinging . | . . . Exploded 3 | . 3 1 Melee . | . . . Uniques/NPCs Destroyed . | . . . Combat | -11 -10 -10 -------- Run | Yrd Mat Sub Hostile Shots Fired 36 | . 5 31 Missed 8 | . 1 7 Hits 28 | . 4 24 Projectile 28 | . 4 24 AOE 2 | . . 2 Critical Strikes 2 | . . 2 Damage Taken 819 | . 102 717 Core 254 | . 21 233 Absorbed by Shields . | . . . Core Remaining (%) 100 | 100 . . Volleys Fired 40 | 2 7 31 Largest 2 | 2 2 2 Hottest 105 | 90 60 105 Shots Fired 72 | 4 14 54 Gun 25 | 4 . 21 Cannon 14 | . . 14 Launcher 33 | . 14 19 Special . | . . . Kinetic 18 | . . 18 Thermal 23 | 2 . 21 Explosive 29 | . 14 15 Electromagnetic 2 | 2 . . Robot Hit Streak 19 | 3 6 19 Robot Miss Streak 4 | . 1 4 Penetration Max . | . . . Secondary Targets . | . . . Shots Hit Robots 40 | 3 6 31 Core Hits 49 | 2 14 33 Critical Kills . | . . . Critical Parts Destroyed . | . . . Critical Strikes 2 | . . 2 Blast 2 | . . 2 Melee Attacks . | . . . Impact . | . . . Slashing . | . . . Piercing . | . . . Sneak Attacks . | . . . Combat Hostiles . | . . . Follow-up Attacks . | . . . Damage Inflicted 1653 | 37 459 1157 Guns 244 | 37 . 207 Cannons 120 | . . 120 Explosions 1289 | . 459 830 Melee . | . . . Ramming . | . . . Kinetic 375 | . . 375 Thermal 219 | 12 . 207 Explosive 1034 | . 459 575 Electromagnetic 25 | 25 . . Impact . | . . . Slashing . | . . . Piercing . | . . . Highest Corruption . | . . . Average Corruption . | . . . Corruption Purged . | . . . Corruption Blocked . | . . . Overload Shots . | . . . Overflow Damage 83 | . 13 70 Projectiles . | . . . Explosions 83 | . 13 70 Melee . | . . . Knockbacks 3 | . . 3 Impact . | . . . Kinetic 2 | . . 2 Secondary 1 | . . 1 Self-Inflicted Damage 251 | . 71 180 Shots 8 | . 2 6 Rammed . | . . . Targets Rammed . | . . . Kicked . | . . . Crushed . | . . . Highest Temperature 30 | 30 . 1 Average Temperature 14 | 16 . 1 Received Heat Transfer 105 | . . 105 Siege Activations . | . . . Martial Activations . | . . . Shielding Activations . | . . . Robots Disrupted . | . . . Combat Hostiles . | . . . Robots Corrupted . | . . . Combat Hostiles . | . . . Parts Fried . | . . . Impact Corruptions . | . . . Robots Melted . | . . . Combat Hostiles . | . . . Parts Melted . | . . . Heat Transferred 297 | 37 . 260 Parts Sabotaged . | . . . Parts Stolen . | . . . Parts Stripped . | . . . Power Chain Reactions . | . . . Alert | -11 -10 -10 ------- Run | Yrd Mat Sub Maximum Alert Level 1 | . 1 . Low Security (%) 82 | 100 79 . Level 1 17 | . 20 . Level 2 . | . . . Level 3 . | . . . Level 4 . | . . . Level 5 . | . . . High Security . | . . . Max Security . | . . . Peak Influence 270 | 5 270 . Initial . | . . . Average 48 | 1 54 . Influence Increases 381 | 5 286 90 Destroy 0b10 Robot/C 180 | . 120 60 Destroy 0b10 Robot/NC 20 | 5 15 . Destroy Leader 24 | . 24 . Disable Machine 45 | . 45 . Destroy Structure 82 | . 82 . Lose Combat Pursuer 30 | . . 30 Influence Decreases 321 | 5 56 260 Entered New Map 111 | . . 111 Time Decay 200 | 5 56 139 Lost Part 10 | . . 10 Squads Dispatched . | . . . Investigation . | . . . Extermination . | . . . Reinforcement . | . . . Assault . | . . . Garrison . | . . . Intercept . | . . . Searches Triggered . | . . . Construction Impeded . | . . . Haulers Reinforced . | . . . Active Scanning Responses . | . . . Cargo Convoy Interrupts . | . . . Stealth | -11 -10 -10 --------- Run | Yrd Mat Sub Distress Signals . | . . . Communications Jammed . | . . . Distress Signals . | . . . Times Spotted 20 | . 9 11 Peak Tracking Total 4 | . 3 4 Tactical Retreats 1 | . . 1 Traps | -11 -10 -10 ------- Run | Yrd Mat Sub Traps Triggered 1 | . . 1 Indirectly . | . . . Trap Hack Attempts . | . . . Triggered . | . . . Disarmed . | . . . Reprogrammed . | . . . Reused . | . . . Traps Extracted . | . . . Installed . | . . . Triggered . | . . . Machines | -11 -10 -10 ---------- Run | Yrd Mat Sub Machines Disabled 3 | . 3 . Max in Single Turn 1 | . 1 . Machines Repaired . | . . . Machines Dismantled . | . . . Machines Sabotaged . | . . . Overloaded Fab Kills . | . . . Hacking | -11 -10 -10 --------- Run | Yrd Mat Sub Machines Accessed . | . . . Terminals . | . . . Fabricators . | . . . Repair Stations . | . . . Recycling Units . | . . . Scanalyzers . | . . . Garrison Access . | . . . Total Hacks . | . . . Successful . | . . . Failed . | . . . Catastrophic . | . . . Database Lockouts . | . . . Manual . | . . . Terminals . | . . . Fabricators . | . . . Repair Stations . | . . . Recycling Units . | . . . Scanalyzers . | . . . Garrison Access . | . . . Terminal Hacks . | . . . Fabricator Hacks . | . . . Repair Station Hacks . | . . . Recycling Unit Hacks . | . . . Scanalyzer . | . . . Garrison Access Hacks . | . . . Unauthorized Hacks . | . . . Terminals . | . . . Fabricators . | . . . Repair Stations . | . . . Recycling Units . | . . . Scanalyzers . | . . . Garrison Access . | . . . Data Cores Recovered . | . . . Used . | . . . Hacking Detections . | . . . Full Trace Events . | . . . Feedback Events . | . . . Feedback Blocked . | . . . Robot Schematics Acquired . | . . . Robots Built . | . . . Authchips . | . . . Time . | . . . Total Robot Build Rating . | . . . Part Schematics Acquired . | . . . Parts Built . | . . . Authchips . | . . . Time . | . . . Total Part Build Rating . | . . . Parts Repaired . | . . . Time . | . . . Parts Recycled . | . . . Recycled Matter . | . . . Retrieved Matter . | . . . Retrieved Components . | . . . Parts Scanalyzed . | . . . Part Schematics Acquired . | . . . Parts Damaged . | . . . Bothacking | -11 -10 -10 ------------ Run | Yrd Mat Sub Used RIF Installer . | . . . Robots Hacked . | . . . Non-combat . | . . . Combat . | . . . Robot Hacks Applied . | . . . Relay Couplers Released . | . . . Fabnet Peak Effective % . | . . . Robots Rewired . | . . . Allies Hacked . | . . . Hacks Repelled . | . . . Allies | -11 -10 -10 -------- Run | Yrd Mat Sub Total Allies . | . . . Largest Group . | . . . Highest-Rated Group . | . . . Highest-Rated Ally . | . . . Total Orders . | . . . Ally Attacks . | . . . Total Damage . | . . . Kills . | . . . Allies Corrupted . | . . . Allies Melted . | . . . Intel | -11 -10 -10 ------- Run | Yrd Mat Sub Active Infowar (turns) . | . . . Robot Analysis Total . | . . . Derelict Logs Recovered 1 | . . 1 Drone Launches . | . . . Drone Recoveries . | . . . Exploration | -11 -10 -10 ------------- Run | Yrd Mat Sub Turns Passed 2248 | 65 552 1631 Spaces Moved 927 | 40 196 691 Core 269 | 15 . 254 Treads 658 | 25 196 437 Legs . | . . . Wheels . | . . . Hover . | . . . Flight . | . . . Fastest Speed 50 | 50 160 160 Average Speed 196 | 126 160 210 Slowest Speed 300 | 160 160 300 Overloaded Moves . | . . . Propulsion Burnouts . | . . . Robots Hopped . | . . . Potential Cave-ins . | . . . Cave-ins Triggered . | . . . Exploration Rate (%) 31 | 3 42 50 Regions Visited 2 Branch Regions 1 Pre-discovered Areas . | . . . Known Exits Taken . | . . . Unknown Exits Taken 2 | 1 1 . Scrap Searched 3 | . . 3 Spaces Dug 17 | . . 17 Terrain Destroyed 203 | . 82 121 Melee . | . . . Projectile 1 | . . 1 AOE 202 | . 82 120 Terrain Rammed . | . . . Walls Destroyed . | . . . Machines Disabled . | . . . Actions | -11 -10 -10 --------- Run | Yrd Mat Sub Total 1284 | 51 420 813 Wait 296 | . 212 84 Move 925 | 39 195 691 Hop . | . . . Pick Up 11 | 5 4 2 Fast Attach 1 | . . 1 Attach 6 | 5 . 1 Detach . | . . . Swap 4 | . 2 2 Drop 1 | . . 1 Fire 40 | 2 7 31 Melee . | . . . Ram . | . . . Kick . | . . . Crush . | . . . Escape Stasis . | . . . Rewire . | . . . Trap . | . . . Miscellaneous . | . . . Route ------- -11/Scrapyard -10/Materials (discovered 3 exits: [*Mat x2] / [*Sub]) -10/Subcaves History --------- Turn | Location | Event 6 | -11/Scrapyard | Discovered new exit (range 15) 66 | -11/Scrapyard | Entered Materials 302 | -10/Materials | Build established: Mutant 497 | -10/Materials | Discovered new exit (range 10) 575 | -10/Materials | Discovered new exit (range 5) 597 | -10/Materials | Discovered new exit (range 5) 618 | -10/Materials | Entered Subcaves 619 | -10/Subcaves | Approached by a straggling Scientist 765 | -10/Subcaves | A swath of the cavern ceiling suddenly collapsed 963 | -10/Subcaves | Ambushed by Subdweller buried in earth 1025 | -10/Subcaves | Ambushed by Subdweller buried in earth 1160 | -10/Subcaves | A swath of the cavern ceiling suddenly collapsed 1204 | -10/Subcaves | Learned 8 Materials zone layouts 1215 | -10/Subcaves | Shifting Twisted Machinery released Battle Cannon 1254 | -10/Subcaves | Shifting Twisted Machinery released Mak. Power Source 1410 | -10/Subcaves | Shifting Twisted Machinery released Sub. Machine Gun 1418 | -10/Subcaves | Core integrity fell below 50% 1482 | -10/Subcaves | Core integrity fell below 20% 2249 | -10/Subcaves | Destroyed self with Subdweller Shrapnel Launcher Last Messages --------------- Acquired 6 matter. Subatomizers dissect the Sub. Monowheel, destroying it. Subatomizers dissect the Sub. Laser. 2H-ROX(R) destroyed. Acquired 38 matter. 5A-PB5(R) destroyed. Acquired 24 matter. AO-3OF(u) tweaks Twisted Machinery. Acquired 14 matter. Acquired 7 matter. AO-3OF(u) tweaks Twisted Machinery. Acquired 9 matter. AO-3OF(u) tweaks Twisted Machinery. Acquired 6 matter. AO-3OF(u) tweaks Twisted Machinery. Spread Laser destroyed. Destroyed Lgt. Ion Engine. Destroyed Flight Unit. S-10 Pest destroyed. Map ----- +----------------------------------------------------+ | ?????????????????????????????????????????????????? | | ?????????????????????????????????????????????????? | | ?????????????????????????????????????????????????? | | ?????????????????????????????????????????????????? | | ????????????????????????? ? ?????? ????????????? | | ???????????????????????# #????? ???????????? | | ???????????????????????? #????? ??????????# | | ????????????????????????# #????? #?######## | | ????????????????????????# #????? ## | | ???????????????????????## #?#???? | | ???????????????????????# ## ????? ? | | ???????????????? ??????# ??????# ?? | | ??????????????" ??????# ??????? #??? | | ?????????????? ????# % #??#####? ???? | | ?????????????? ????# #?## ### ????? | | ??????????????? ???# ### ###%# ###??## | | ?????????????#### ##??# ## #### | | ????????????? % #??# # ## | | ????????????? %??# ## ## # | | ???????????? ###### ####### | | ????????????? ### #?????# "" | | ????????????????????## ############# "" | | ?????????????????????##; ### ### " "" | | ??????????????????????#;; ;#?# "" "# | | ???????????????????## #;; ;#?# " ## | | ???????????????????# @ #?# ##"" #? | | ????????????? #?### ##" #? | | ?????????? #???# ##" #? | | ??????????? ## #???# " ### | | ??????????? ???# % ## #???##" " ### | | ??????????????????## %#####????## ""## ## | | ???????????????????#### ##?????????# "###### | | ??????????????????????###???????????#""#???##"" | | ????????????????????????????????##??####???# " | | ????????????????????????????????# ##???????# " | | ????????????????????????????????# #####??##""" " | | ????????????????????????????????# #### """ | | ????????????????????????????????# " | | ????????????????????????????????# | | ????????????????????????????????##### % | | ????????????????????????????????????############## | | ?????????????????????????????????????????????????? | | ?????????????????????????????????????????????????? | | ?????????????????????????????????????????????????? | | ?????????????????????????????????????????????????? | | ?????????????????????????????????????????????????? | | ?????????????????????????????????????????????????? | | ?????????????????????????????????????????????????? | | ?????????????????????????????????????????????????? | | ?????????????????????????????????????????????????? | +----------------------------------------------------+ Best States ------------- Heat Dissipation 25 Energy Generation 10 Energy Capacity 250 Matter Stores 257 Matter Capacity 300 Sight Range 16 Terrain Scan Density 10 Evasion (%) 40 Recoil Reduction 2 Item Schematics ----------------- None Robot Schematics ------------------ None Fabricated ------------ Nothing Repaired ---------- Nothing Alien Tech Used ----------------- None Achievements -------------- None Challenges ------------ None Game ------ Seed DefenseLargeMount Manual? 0 Play Time 00:11:49 Cumulative 47.7 hours Start 2025.07.13 @ 22:08:12 End 2025.07.13 @ 22:15:30 Sessions 1 Manual Loads 0 Difficulty Rogue Special Mode None Game No. 225 Rogue 225 Adventurer 0 Explorer 0 Win Type - Total 0 Types 0/0/0/0/0/0/0/0/0/0 Lore% 32 Gallery% 26 Achievement% 23 Wizard Run 0 Options --------- Layout 2 ASCII 0 Keyboard 0 Movement Mouse Keybinds 0 Fullscreen 1 Font 24/Smallcaps Map View 50x44 Zoom Use 0% Tactical HUD 0 Map Filters NONE Filters NONE Steam 1 RUN: 78fa418d-f3f2-4c52-b060-2b5a7b99e4e6